fUST/lending_fUST_20250511
["ID","MTS","AMOUNT","RATE_DAILY","PERIOD"]
[360640014,1746912679979,-1000.0,0.00014987,2]
[360640015,1746912679989,-1295.42358393,0.00014989,5]
[360640017,1746912679998,-160.0,0.00014999,2]
[360640019,1746912680007,-160.0,0.00014999,2]
[360640021,1746912680016,-160.0,0.00014999,2]
[360640023,1746912680026,-289.29474747,0.00014999,2]
[360640025,1746912680035,-160.0,0.00014999,2]
[360640027,1746912680044,-160.0,0.00014999,2]
[360640029,1746912680053,-165.93871385,0.00014999,2]
[360640031,1746912680063,-2800.0,0.00015,2]
[360640033,1746912680072,-2000.0,0.00015,2]
[360640035,1746912680082,-2000.0,0.00015,2]
[360640037,1746912680091,-2000.0,0.00015,2]
[360640039,1746912680100,-2000.0,0.00015,2]
[360640041,1746912680110,-2000.0,0.00015,2]
[360640043,1746912680119,-20000.0,0.00015,2]
[360640045,1746912680129,-20000.0,0.00015,2]
[360640047,1746912680138,-20000.0,0.00015,2]
[360640049,1746912680147,-123000.0,0.00015,2]
[360640051,1746912680156,-296.12,0.00015,2]
[360640053,1746912680165,-500.0,0.00015,2]
[360640055,1746912680174,-500.0,0.00015,2]
[360640056,1746912680183,-9001.8211741,0.00015,4]
[360640058,1746912680191,-2000.0,0.00015,2]
[360640060,1746912680201,-2000.0,0.00015,2]
[360640062,1746912680210,-2000.0,0.00015,2]
[360640064,1746912680219,-199309.65081567,0.00015,2]
[360640066,1746912680229,-16000.0,0.00015,2]
[360640068,1746912680238,-1000.0,0.00015,2]
[360640070,1746912680248,-160.0,0.00015,2]
[360640072,1746912680257,-259.59375836,0.00015064,2]
[360640074,1746912680267,-224.42,0.00015068,2]
[360640076,1746912680276,-6000.0,0.00015068,2]
[360640078,1746912680286,-500.0,0.00015114,2]
[360640080,1746912680295,-180.12608826,0.00015643,2]
[360640082,1746912680304,-500.0,0.000157,2]
[360640084,1746912680314,-498.54,0.000157,2]
[360640086,1746912680323,-3162.0,0.00015777,2]
[360640088,1746912680332,-1413.35,0.000158,5]
[360640090,1746912680342,-230.45474967,0.0001589,2]
[360640092,1746912680351,-500.0,0.0001591,2]
[360640094,1746912680361,-160.0,0.00015999,2]
[360640096,1746912680372,-160.0,0.00015999,2]
[360640098,1746912680383,-67164.11897001,0.00016,2]
[360640099,1746912680393,-2001.5788726,0.00016,5]
[360640101,1746912680402,-954.5,0.00016,2]
[360640103,1746912680411,-150.69609789,0.00016,3]
[360640105,1746912680422,-954.5,0.00016,2]
[360640107,1746912680431,-2000.0,0.00016,2]
[360640109,1746912680440,-3000.0,0.00016,2]
[360640111,1746912680451,-5000.0,0.00016,2]
[360640113,1746912680460,-5000.0,0.00016,2]
[360640115,1746912680470,-5000.0,0.00016,2]
[360640117,1746912680480,-5000.0,0.00016,2]
[360640119,1746912680490,-5000.0,0.00016,2]
[360640121,1746912680499,-5000.0,0.00016,2]
[360640123,1746912680510,-5000.0,0.00016,2]
[360640125,1746912680519,-5000.0,0.00016,2]
[360640127,1746912680528,-5000.0,0.00016,2]
[360640129,1746912680538,-5000.0,0.00016,2]
[360640131,1746912680547,-5000.0,0.00016,2]
[360640133,1746912680556,-4423.19912727,0.00016,2]
[360640257,1746912681905,-397.40111,8.096e-05,2]
[360640259,1746912681916,-500.0,8.096e-05,2]
[360640261,1746912681926,-151.0,8.219e-05,2]
[360640263,1746912681935,-151.0,8.219e-05,2]
[360640265,1746912681945,-151.0,8.219e-05,2]
[360640267,1746912681954,-151.0,8.219e-05,2]
[360640269,1746912681963,-151.0,8.219e-05,2]
[360640271,1746912681973,-151.0,8.219e-05,2]
[360640273,1746912681982,-151.0,8.219e-05,2]
[360640275,1746912681992,-151.0,8.219e-05,2]
[360640277,1746912682001,-151.0,8.219e-05,2]
[360640279,1746912682011,-151.0,8.492e-05,2]
[360640281,1746912682020,-151.0,8.493e-05,2]
[360640283,1746912682030,-151.0,8.493e-05,2]
[360640285,1746912682039,-9481.40716856,0.0001,2]
[360640543,1746912684551,152.35007314,6e-07,2]
[360640569,1746912684791,200.27442703,7.997e-05,2]
[360640825,1746912714098,280984.24529845,8.019e-05,2]
[360640829,1746913105712,22289.1563619,7.397e-05,2]
[360640830,1746913176683,2404.8942993,7.508e-05,2]
[360640834,1746913400136,364.5199525,7.364e-05,2]
[360640836,1746913481272,816.6569454,7.273e-05,2]
[360640837,1746913494886,178.813081,7.423e-05,2]
[360640890,1746913832307,-300.0,8.19e-05,2]
[360640891,1746913832317,-173.52248271,8.191e-05,2]
[360640892,1746913832327,-500.0,8.191e-05,2]
[360640893,1746913832336,-500.0,8.191e-05,2]
[360640894,1746913832345,-203.6642975,8.191e-05,2]
[360640895,1746913832355,-500.0,8.191e-05,2]
[360640896,1746913832365,-500.0,8.191e-05,2]
[360640897,1746913832375,-500.0,8.191e-05,2]
[360640898,1746913832384,-377.98237834,8.191e-05,2]
[360640899,1746913832394,-500.0,8.191e-05,2]
[360640900,1746913832403,-500.0,8.191e-05,2]
[360640901,1746913832413,-603.03883178,8.191e-05,2]
[360640902,1746913832423,-500.0,8.191e-05,2]
[360640903,1746913832432,-500.0,8.191e-05,2]
[360640904,1746913832442,-500.0,8.191e-05,2]
[360640905,1746913832451,-500.0,8.191e-05,2]
[360640906,1746913832461,-500.0,8.191e-05,2]
[360640907,1746913832470,-500.0,8.191e-05,2]
[360640908,1746913832479,-500.0,8.191e-05,2]
[360640909,1746913832489,-500.0,8.191e-05,2]
[360640910,1746913832498,-500.0,8.191e-05,2]
[360640911,1746913832508,-500.0,8.191e-05,2]
[360640912,1746913832517,-500.0,8.191e-05,2]
[360640913,1746913832527,-500.0,8.191e-05,2]
[360640914,1746913832536,-19244.83349799,8.191e-05,2]
[360640960,1746913838441,-12644.55334084,8.191e-05,2]
[360641012,1746913840610,-4704.64887976,8.191e-05,2]
[360641014,1746913840622,-500.0,8.192e-05,2]
[360641015,1746913840631,-480.0,8.192e-05,2]
[360641018,1746913840641,-500.0,8.192e-05,2]
[360641019,1746913840650,-500.0,8.218e-05,2]
[360641022,1746913840660,-165.51690122,8.218e-05,2]
[360641024,1746913840670,-628.180777,8.218e-05,2]
[360641026,1746913840680,-457.42,8.219e-05,2]
[360641028,1746913840689,-400.0,8.219e-05,2]
[360641030,1746913840699,-400.0,8.219e-05,2]
[360641031,1746913840708,-387.07696091,8.219e-05,2]
[360641034,1746913840718,-478.83,8.219e-05,2]
[360641036,1746913840727,-400.0,8.219e-05,2]
[360641038,1746913840736,-400.0,8.219e-05,2]
[360641040,1746913840750,-400.0,8.219e-05,2]
[360641042,1746913840760,-400.0,8.219e-05,2]
[360641044,1746913840770,-400.0,8.219e-05,2]
[360641046,1746913840780,-400.0,8.219e-05,2]
[360641048,1746913840789,-400.0,8.219e-05,2]
[360641050,1746913840799,-400.0,8.219e-05,2]
[360641052,1746913840807,-400.0,8.219e-05,2]
[360641054,1746913840818,-284.40548368,8.219e-05,2]
[360641056,1746913840828,-400.0,8.219e-05,2]
[360641058,1746913840838,-400.0,8.219e-05,2]
[360641060,1746913840847,-400.0,8.219e-05,2]
[360641062,1746913840856,-430.43618448,8.219e-05,2]
[360641064,1746913840865,-400.0,8.219e-05,2]
[360641066,1746913840875,-400.0,8.219e-05,2]
[360641068,1746913840885,-400.0,8.219e-05,2]
[360641070,1746913840894,-400.0,8.219e-05,2]
[360641072,1746913840904,-400.0,8.219e-05,2]
[360641074,1746913840913,-400.0,8.219e-05,2]
[360641076,1746913840923,-400.0,8.219e-05,2]
[360641078,1746913840933,-400.0,8.219e-05,2]
[360641080,1746913840943,-400.0,8.219e-05,2]
[360641082,1746913840952,-400.0,8.219e-05,2]
[360641084,1746913840961,-400.0,8.219e-05,2]
[360641086,1746913840970,-400.0,8.219e-05,2]
[360641088,1746913840979,-400.0,8.219e-05,2]
[360641090,1746913840989,-400.0,8.219e-05,2]
[360641092,1746913840999,-400.0,8.219e-05,2]
[360641094,1746913841009,-489.84,8.219e-05,2]
[360641096,1746913841019,-504.97,8.219e-05,2]
[360641098,1746913841029,-400.0,8.219e-05,2]
[360641119,1746913841217,-400.0,8.219e-05,2]
[360641121,1746913841227,-400.0,8.219e-05,2]
[360641123,1746913841237,-400.0,8.219e-05,2]
[360641125,1746913841246,-400.0,8.219e-05,2]
[360641127,1746913841256,-400.0,8.219e-05,2]
[360641129,1746913841265,-539.65,8.219e-05,2]
[360641131,1746913841274,-522.88,8.219e-05,2]
[360641133,1746913841284,-400.0,8.219e-05,2]
[360641135,1746913841293,-400.0,8.219e-05,2]
[360641137,1746913841302,-400.0,8.219e-05,2]
[360641139,1746913841312,-400.0,8.219e-05,2]
[360641141,1746913841322,-400.0,8.219e-05,2]
[360641143,1746913841331,-512.06,8.219e-05,2]
[360641145,1746913841340,-400.0,8.219e-05,2]
[360641147,1746913841350,-400.0,8.219e-05,2]
[360641149,1746913841359,-400.0,8.219e-05,2]
[360641151,1746913841368,-400.0,8.219e-05,2]
[360641153,1746913841378,-400.0,8.219e-05,2]
[360641155,1746913841388,-400.0,8.219e-05,2]
[360641157,1746913841397,-400.0,8.219e-05,2]
[360641159,1746913841406,-400.0,8.219e-05,2]
[360641161,1746913841415,-400.0,8.219e-05,2]
[360641163,1746913841425,-400.0,8.219e-05,2]
[360641165,1746913841434,-400.0,8.219e-05,2]
[360641167,1746913841445,-400.0,8.219e-05,2]
[360641169,1746913841454,-400.0,8.219e-05,2]
[360641171,1746913841463,-400.0,8.219e-05,2]
[360641173,1746913841474,-400.0,8.219e-05,2]
[360641176,1746913841484,-435.97,8.219e-05,2]
[360641177,1746913841493,-400.0,8.219e-05,2]
[360641180,1746913841502,-400.0,8.219e-05,2]
[360641182,1746913841512,-400.0,8.219e-05,2]
[360641184,1746913841521,-400.0,8.219e-05,2]
[360641186,1746913841531,-400.0,8.219e-05,2]
[360641187,1746913841540,-400.0,8.219e-05,2]
[360641189,1746913841550,-400.0,8.219e-05,2]
[360641192,1746913841560,-400.0,8.219e-05,2]
[360641193,1746913841569,-400.0,8.219e-05,2]
[360641195,1746913841578,-454.55,8.219e-05,2]
[360641197,1746913841587,-400.0,8.219e-05,2]
[360641199,1746913841597,-400.0,8.219e-05,2]
[360641201,1746913841606,-400.0,8.219e-05,2]
[360641203,1746913841615,-400.0,8.219e-05,2]
[360641205,1746913841626,-400.0,8.219e-05,2]
[360641207,1746913841636,-400.0,8.219e-05,2]
[360641209,1746913841645,-403.69,8.219e-05,2]
[360641211,1746913841655,-400.0,8.219e-05,2]
[360641213,1746913841665,-494.13,8.219e-05,2]
[360641215,1746913841674,-400.0,8.219e-05,2]
[360641217,1746913841683,-400.0,8.219e-05,2]
[360641219,1746913841694,-400.0,8.219e-05,2]
[360641221,1746913841703,-400.0,8.219e-05,2]
[360641223,1746913841712,-400.0,8.219e-05,2]
[360641225,1746913841722,-400.0,8.219e-05,2]
[360641227,1746913841731,-400.0,8.219e-05,2]
[360641229,1746913841741,-438.08,8.219e-05,2]
[360641231,1746913841752,-400.0,8.219e-05,2]
[360641233,1746913841761,-400.0,8.219e-05,2]
[360641235,1746913841770,-400.0,8.219e-05,2]
[360641237,1746913841781,-400.0,8.219e-05,2]
[360641239,1746913841791,-523.62,8.219e-05,2]
[360641241,1746913841800,-400.0,8.219e-05,2]
[360641243,1746913841809,-400.0,8.219e-05,2]
[360641245,1746913841819,-455.9,8.219e-05,2]
[360641247,1746913841828,-400.0,8.219e-05,2]
[360641249,1746913841837,-400.0,8.219e-05,2]
[360641251,1746913841846,-400.0,8.219e-05,2]
[360641253,1746913841855,-400.0,8.219e-05,2]
[360641255,1746913841864,-400.0,8.219e-05,2]
[360641257,1746913841873,-400.0,8.219e-05,2]
[360641259,1746913841882,-400.0,8.219e-05,2]
[360641261,1746913841891,-400.0,8.219e-05,2]
[360641262,1746913841900,-400.0,8.219e-05,2]
[360641264,1746913841910,-400.0,8.219e-05,2]
[360641266,1746913841919,-400.0,8.219e-05,2]
[360641268,1746913841928,-400.0,8.219e-05,2]
[360641270,1746913841938,-400.0,8.219e-05,2]
[360641272,1746913841948,-400.0,8.219e-05,2]
[360641274,1746913841958,-400.0,8.219e-05,2]
[360641276,1746913841967,-415.52,8.219e-05,2]
[360641278,1746913841976,-400.0,8.219e-05,2]
[360641280,1746913841985,-400.0,8.219e-05,2]
[360641282,1746913841994,-400.0,8.219e-05,2]
[360641284,1746913842004,-400.0,8.219e-05,2]
[360641286,1746913842013,-400.0,8.219e-05,2]
[360641288,1746913842022,-456.99,8.219e-05,2]
[360641290,1746913842031,-400.0,8.219e-05,2]
[360641292,1746913842041,-400.0,8.219e-05,2]
[360641295,1746913842051,-484.23,8.219e-05,2]
[360641297,1746913842060,-400.0,8.219e-05,2]
[360641299,1746913842070,-400.0,8.219e-05,2]
[360641301,1746913842079,-400.0,8.219e-05,2]
[360641303,1746913842088,-480.68,8.219e-05,2]
[360641305,1746913842098,-400.0,8.219e-05,2]
[360641307,1746913842107,-400.0,8.219e-05,2]
[360641309,1746913842116,-400.0,8.219e-05,2]
[360641311,1746913842126,-400.0,8.219e-05,2]
[360641313,1746913842135,-408.04,8.219e-05,2]
[360641314,1746913842146,-513.69,8.219e-05,2]
[360641317,1746913842156,-400.0,8.219e-05,2]
[360641318,1746913842166,-400.0,8.219e-05,2]
[360641321,1746913842175,-400.0,8.219e-05,2]
[360641323,1746913842185,-400.0,8.219e-05,2]
[360641325,1746913842195,-400.0,8.219e-05,2]
[360641327,1746913842204,-400.0,8.219e-05,2]
[360641329,1746913842213,-400.0,8.219e-05,2]
[360641330,1746913842224,-400.0,8.219e-05,2]
[360641332,1746913842235,-400.0,8.219e-05,2]
[360641334,1746913842245,-400.0,8.219e-05,2]
[360641337,1746913842256,-400.0,8.219e-05,2]
[360641338,1746913842265,-400.0,8.219e-05,2]
[360641341,1746913842276,-400.0,8.219e-05,2]
[360641342,1746913842286,-400.0,8.219e-05,2]
[360641344,1746913842295,-400.0,8.219e-05,2]
[360641347,1746913842306,-400.0,8.219e-05,2]
[360641348,1746913842315,-400.0,8.219e-05,2]
[360641350,1746913842324,-400.0,8.219e-05,2]
[360641352,1746913842333,-400.0,8.219e-05,2]
[360641354,1746913842343,-400.0,8.219e-05,2]
[360641356,1746913842352,-499.88,8.219e-05,2]
[360641358,1746913842361,-400.0,8.219e-05,2]
[360641361,1746913842371,-400.0,8.219e-05,2]
[360641362,1746913842380,-447.46,8.219e-05,2]
[360641365,1746913842390,-416.85,8.219e-05,2]
[360641366,1746913842399,-512.02,8.219e-05,2]
[360641368,1746913842408,-400.0,8.219e-05,2]
[360641370,1746913842418,-400.0,8.219e-05,2]
[360641373,1746913842427,-400.0,8.219e-05,2]
[360641374,1746913842436,-400.0,8.219e-05,2]
[360641376,1746913842445,-341.73114065,8.219e-05,2]
[360641707,1746913845696,-58.26885935,8.219e-05,2]
[360641710,1746913845707,-400.0,8.219e-05,2]
[360641713,1746913845717,-400.0,8.219e-05,2]
[360641716,1746913845726,-400.0,8.219e-05,2]
[360641718,1746913845736,-427.37,8.219e-05,2]
[360641720,1746913845748,-400.0,8.219e-05,2]
[360641722,1746913845757,-4.80909951,8.219e-05,2]
[360641724,1746913845770,-395.19090049,8.219e-05,2]
[360641726,1746913845779,-400.0,8.219e-05,2]
[360641728,1746913845790,-400.0,8.219e-05,2]
[360641730,1746913845800,-400.0,8.219e-05,2]
[360641732,1746913845810,-49.48016523,8.219e-05,2]
[360641734,1746913845823,-350.51983477,8.219e-05,2]
[360641736,1746913845832,-445.82,8.219e-05,2]
[360641738,1746913845842,-400.0,8.219e-05,2]
[360641740,1746913845851,-400.0,8.219e-05,2]
[360641742,1746913845862,-400.0,8.219e-05,2]
[360641744,1746913845872,-400.0,8.219e-05,2]
[360641746,1746913845883,-400.0,8.219e-05,2]
[360641748,1746913845892,-453.4,8.219e-05,2]
[360641750,1746913845902,-400.0,8.219e-05,2]
[360641752,1746913845912,-400.0,8.219e-05,2]
[360641755,1746913845921,-400.0,8.219e-05,2]
[360641758,1746913845931,-227.61858823,8.219e-05,2]
[360641761,1746913845940,-400.0,8.219e-05,2]
[360641764,1746913845950,-94.49081166,8.219e-05,2]
[360641768,1746913845961,-305.50918834,8.219e-05,2]
[360641770,1746913845970,-400.0,8.219e-05,2]
[360641774,1746913845979,-400.0,8.219e-05,2]
[360641776,1746913845989,-400.0,8.219e-05,2]
[360641778,1746913845998,-446.99,8.219e-05,2]
[360641780,1746913846007,-400.0,8.219e-05,2]
[360641782,1746913846016,-525.79,8.219e-05,2]
[360641783,1746913846026,-400.0,8.219e-05,2]
[360641785,1746913846035,-1520.49,8.219e-05,2]
[360641788,1746913846044,-460.15,8.219e-05,2]
[360641790,1746913846053,-3741.78266131,8.219e-05,2]
[360641792,1746913846065,-602.74633873,8.219e-05,2]
[360641794,1746913846075,-400.0,8.219e-05,2]
[360641796,1746913846084,-400.0,8.219e-05,2]
[360641798,1746913846094,-498.95,8.219e-05,2]
[360641800,1746913846103,-427.35,8.219e-05,2]
[360641802,1746913846116,-490.3160183,8.219e-05,2]
[360641804,1746913846127,-400.0,8.219e-05,2]
[360641806,1746913846136,-400.0,8.219e-05,2]
[360641808,1746913846146,-188.35909335,8.219e-05,2]
[360641811,1746913846159,-211.64090665,8.219e-05,2]
[360641813,1746913846169,-257.30109335,8.219e-05,2]
[360641840,1746913846418,-142.69890665,8.219e-05,2]
[360641842,1746913846428,-400.0,8.219e-05,2]
[360641844,1746913846438,-436.7,8.219e-05,2]
[360641846,1746913846448,-400.0,8.219e-05,2]
[360641848,1746913846457,-200.63030756,8.219e-05,2]
[360641850,1746913846467,-400.0,8.219e-05,2]
[360641852,1746913846476,-400.0,8.219e-05,2]
[360641854,1746913846487,-400.0,8.219e-05,2]
[360641856,1746913846496,-400.0,8.219e-05,2]
[360641858,1746913846506,-400.0,8.219e-05,2]
[360641860,1746913846515,-400.0,8.219e-05,2]
[360641862,1746913846526,-400.0,8.219e-05,2]
[360641864,1746913846536,-400.0,8.219e-05,2]
[360641866,1746913846546,-434.68,8.219e-05,2]
[360641868,1746913846555,-400.0,8.219e-05,2]
[360641870,1746913846565,-400.0,8.219e-05,2]
[360641872,1746913846575,-400.0,8.219e-05,2]
[360641874,1746913846584,-435.95864641,8.219e-05,2]
[360641876,1746913846594,-400.0,8.219e-05,2]
[360641879,1746913846607,-400.0,8.219e-05,2]
[360641881,1746913846617,-400.0,8.219e-05,2]
[360641883,1746913846627,-400.0,8.219e-05,2]
[360641884,1746913846636,-400.0,8.219e-05,2]
[360641887,1746913846646,-400.0,8.219e-05,2]
[360641889,1746913846656,-432.17,8.493e-05,2]
[360641890,1746913846665,-424.8,8.493e-05,2]
[360641893,1746913846675,-400.0,8.493e-05,2]
[360641895,1746913846685,-339.55,8.493e-05,2]
[360641897,1746913846694,-400.0,8.493e-05,2]
[360641899,1746913846706,-162.01,8.493e-05,2]
[360641901,1746913846716,-400.0,8.493e-05,2]
[360641903,1746913846725,-400.0,8.493e-05,2]
[360641905,1746913846736,-381.59,8.493e-05,2]
[360641907,1746913846748,-400.0,8.493e-05,2]
[360641908,1746913846759,-240.39,8.493e-05,2]
[360641910,1746913846768,-265.28,8.493e-05,2]
[360641913,1746913846778,-400.0,8.493e-05,2]
[360641915,1746913846790,-400.0,8.493e-05,2]
[360641917,1746913846799,-400.0,8.493e-05,2]
[360641919,1746913846809,-400.0,8.493e-05,2]
[360641921,1746913846820,-400.0,8.493e-05,2]
[360641923,1746913846830,-299.78,8.493e-05,2]
[360641925,1746913846840,-215.73,8.493e-05,2]
[360641927,1746913846850,-400.0,8.493e-05,2]
[360641929,1746913846859,-400.0,8.493e-05,2]
[360641931,1746913846869,-400.0,8.493e-05,2]
[360641933,1746913846878,-513.03,8.493e-05,2]
[360641935,1746913846888,-400.0,8.493e-05,2]
[360641937,1746913846897,-400.0,8.493e-05,2]
[360641938,1746913846908,-267.76,8.493e-05,2]
[360641939,1746913846917,-319.53,8.493e-05,2]
[360641940,1746913846926,-466.6,8.493e-05,2]
[360641941,1746913846936,-493.91,8.493e-05,2]
[360641942,1746913846946,-454.55,8.493e-05,2]
[360641943,1746913846955,-400.0,8.493e-05,2]
[360641944,1746913846965,-400.0,8.493e-05,2]
[360641945,1746913846975,-400.0,8.493e-05,2]
[360641946,1746913846984,-292.72,8.493e-05,2]
[360641947,1746913846994,-400.0,8.493e-05,2]
[360641948,1746913847003,-488.64,8.493e-05,2]
[360641949,1746913847013,-400.0,8.493e-05,2]
[360641950,1746913847023,-452.33,8.493e-05,2]
[360641951,1746913847032,-322.49,8.493e-05,2]
[360641952,1746913847042,-233.73,8.493e-05,2]
[360641953,1746913847052,-157.78,8.493e-05,2]
[360641954,1746913847061,-503.04,8.493e-05,2]
[360641955,1746913847071,-271.11,8.493e-05,2]
[360641956,1746913847081,-398.74,8.493e-05,2]
[360641958,1746913847090,-400.0,8.493e-05,2]
[360641960,1746913847100,-328.41,8.493e-05,2]
[360641962,1746913847109,-400.0,8.493e-05,2]
[360641963,1746913847118,-274.19860317,8.493e-05,2]
[360641966,1746913847135,-125.80139683,8.493e-05,2]
[360641968,1746913847145,-455.77,8.493e-05,2]
[360641970,1746913847154,-428.14,8.493e-05,2]
[360641972,1746913847164,-305.43,8.493e-05,2]
[360641974,1746913847173,-400.0,8.493e-05,2]
[360641976,1746913847183,-400.0,8.493e-05,2]
[360641978,1746913847193,-456.99,8.493e-05,2]
[360641980,1746913847202,-400.0,8.493e-05,2]
[360641982,1746913847212,-400.0,8.493e-05,2]
[360641984,1746913847222,-400.0,8.493e-05,2]
[360641986,1746913847232,-400.0,8.493e-05,2]
[360641988,1746913847241,-400.0,8.493e-05,2]
[360641990,1746913847251,-400.0,8.493e-05,2]
[360641992,1746913847260,-400.0,8.493e-05,2]
[360641994,1746913847270,-400.0,8.493e-05,2]
[360641996,1746913847281,-400.0,8.493e-05,2]
[360641998,1746913847290,-400.0,8.493e-05,2]
[360642000,1746913847301,-400.0,8.493e-05,2]
[360642002,1746913847311,-400.0,8.493e-05,2]
[360642004,1746913847322,-394.3,8.493e-05,2]
[360642006,1746913847332,-229.14000001,8.493e-05,2]
[360642008,1746913847343,-400.0,8.493e-05,2]
[360642010,1746913847353,-389.56,8.493e-05,2]
[360642012,1746913847363,-219.24,8.493e-05,2]
[360642014,1746913847373,-400.0,8.493e-05,2]
[360642016,1746913847382,-400.0,8.493e-05,2]
[360642018,1746913847392,-400.0,8.493e-05,2]
[360642020,1746913847402,-400.0,8.493e-05,2]
[360642021,1746913847411,-481.79,8.493e-05,2]
[360642024,1746913847421,-400.0,8.493e-05,2]
[360642025,1746913847430,-400.0,8.493e-05,2]
[360642027,1746913847440,-400.0,8.493e-05,2]
[360642030,1746913847450,-400.0,8.493e-05,2]
[360642032,1746913847459,-400.0,8.493e-05,2]
[360642034,1746913847468,-400.0,8.493e-05,2]
[360642036,1746913847479,-400.0,8.493e-05,2]
[360642037,1746913847488,-400.0,8.493e-05,2]
[360642039,1746913847497,-400.0,8.493e-05,2]
[360642042,1746913847508,-400.0,8.493e-05,2]
[360642043,1746913847517,-320.62,8.493e-05,2]
[360642046,1746913847527,-400.0,8.493e-05,2]
[360642047,1746913847536,-261.8,8.493e-05,2]
[360642049,1746913847546,-400.0,8.493e-05,2]
[360642052,1746913847556,-400.0,8.493e-05,2]
[360642053,1746913847565,-463.31,8.493e-05,2]
[360642056,1746913847575,-322.59,8.493e-05,2]
[360642058,1746913847585,-400.0,8.493e-05,2]
[360642060,1746913847595,-1520.49,8.493e-05,2]
[360642062,1746913847605,-522.84,8.493e-05,2]
[360642064,1746913847615,-522.29,8.493e-05,2]
[360642066,1746913847628,-498.95,8.493e-05,2]
[360642068,1746913847638,-400.0,8.493e-05,2]
[360642070,1746913847647,-400.0,8.493e-05,2]
[360642071,1746913847657,-400.0,8.493e-05,2]
[360642074,1746913847668,-400.0,8.493e-05,2]
[360642075,1746913847679,-400.0,8.493e-05,2]
[360642077,1746913847688,-393.93,8.493e-05,2]
[360642080,1746913847698,-400.0,8.493e-05,2]
[360642083,1746913847718,-400.0,8.493e-05,2]
[360642085,1746913847728,-400.0,8.493e-05,2]
[360642087,1746913847739,-400.0,8.493e-05,2]
[360642089,1746913847754,-400.0,8.493e-05,2]
[360642091,1746913847764,-295.87,8.493e-05,2]
[360642093,1746913847774,-400.0,8.493e-05,2]
[360642095,1746913847784,-400.0,8.493e-05,2]
[360642097,1746913847796,-157.25,8.493e-05,2]
[360642099,1746913847805,-287.69681971,8.552e-05,2]
[360642101,1746913847816,-154.18,8.767e-05,2]
[360642103,1746913847827,-400.0,8.767e-05,2]
[360642105,1746913847836,-400.0,8.767e-05,2]
[360642107,1746913847846,-400.0,8.767e-05,2]
[360642109,1746913847856,-185.97,8.767e-05,2]
[360642111,1746913847866,-342.12,8.767e-05,2]
[360642113,1746913847876,-435.06,8.767e-05,2]
[360642115,1746913847886,-470.42824733,8.767e-05,2]
[360642117,1746913847896,-400.0,8.767e-05,2]
[360642119,1746913847906,-351.25,8.767e-05,2]
[360642121,1746913847916,-400.0,8.767e-05,2]
[360642123,1746913847926,-400.0,8.767e-05,2]
[360642125,1746913847936,-400.0,8.767e-05,2]
[360642127,1746913847945,-400.0,8.767e-05,2]
[360642129,1746913847955,-400.0,8.767e-05,2]
[360642131,1746913847966,-454.55,8.767e-05,2]
[360642133,1746913847975,-400.0,8.767e-05,2]
[360642135,1746913847986,-400.0,8.767e-05,2]
[360642137,1746913847996,-300.05,8.767e-05,2]
[360642139,1746913848006,-360.64,8.767e-05,2]
[360642141,1746913848016,-400.0,8.767e-05,2]
[360642143,1746913848027,-161.45,8.767e-05,2]
[360642145,1746913848037,-400.0,8.767e-05,2]
[360642147,1746913848046,-400.0,8.767e-05,2]
[360642149,1746913848056,-174.46,8.767e-05,2]
[360642151,1746913848066,-400.0,8.767e-05,2]
[360642154,1746913848077,-456.99,8.767e-05,2]
[360642156,1746913848087,-400.0,8.767e-05,2]